[Event "Swedish Chess Championship 2019: Minior-SM"]
[Site "Stiga Sports Arena, Arenatorget 1, Eskilstuna, Sweden, Sweden"]
[Date "2019.07.12"]
[Round "6.4"]
[White "Tran, Alva Ling"]
[Black "Wikman, Viktor"]
[Result "1-0"]
[TimeControl "90 minutes for 40 moves + 30 minutes for the rest of the game + 30 seconds per move from move one"]
[WhiteFideId "1753223"]
[BlackFideId "1744720"]
[WhiteElo "1712"]
[BlackElo "1633"]

1. e4 {[%emt 00:02:46]} e6 {[%emt 00:00:02]} 2. d4 {[%clk 01:31:21]} d5 {[%clk
01:31:41]} {[%emt 00:00:17]} 3. Nc3 {[%clk 01:31:41]} Nf6 {[%clk 01:31:41]}
{[%emt 00:00:04]} 4. Bg5 {[%emt 00:00:18]} Be7 {[%clk 01:32:05]} {[%emt
00:00:02]} 5. e5 {[%clk 01:32:13]} Nfd7 {[%clk 01:32:29]} {[%emt 00:00:21]} 6.
Bxe7 Qxe7 7. f4 {[%clk 01:32:11]} {[%emt 00:00:27]} a6 {[%clk 01:33:15]} {[%emt
00:00:07]} 8. Nf3 {[%emt 00:02:28]} c5 {[%clk 01:31:28]} {[%emt 00:00:36]} 9.
Bd3 {[%clk 01:31:09]} {[%emt 00:01:16]} Nc6 {[%clk 01:30:09]} {[%emt 00:01:50]}
10. O-O {[%emt 00:05:04]} h6 {[%clk 01:25:47]} {[%emt 00:03:27]} 11. Qe1 {[%clk
01:18:23]} {[%emt 00:10:06]} O-O {[%emt 00:01:34]} 12. g4 {[%clk 01:12:14]}
{[%emt 00:06:35]} cxd4 {[%clk 01:16:56]} {[%emt 00:08:22]} 13. Ne2 {[%clk
01:11:30]} {[%emt 00:01:13]} Nc5 {[%clk 01:16:36]} {[%emt 00:00:51]} 14. g5
{[%clk 00:50:22]} {[%emt 00:21:38]} Nxd3 {[%clk 01:15:32]} {[%emt 00:01:34]} 15.
cxd3 {[%clk 00:46:51]} {[%emt 00:04:01]} h5 {[%clk 01:14:40]} {[%emt 00:01:22]}
16. Ng3 {[%clk 00:30:07]} {[%emt 00:17:15]} g6 {[%clk 01:05:25]} {[%emt
00:09:45]} 17. Nh4 {[%clk 00:28:10]} {[%emt 00:02:27]} Re8 {[%clk 00:53:58]}
{[%emt 00:11:57]} 18. Qe2 {[%clk 00:25:02]} {[%emt 00:03:37]} Kg7 {[%clk
00:48:35]} {[%emt 00:05:53]} 19. Rf2 {[%clk 00:20:29]} {[%emt 00:05:03]} Bd7
{[%clk 00:43:46]} {[%emt 00:05:19]} 20. Raf1 {[%clk 00:15:40]} {[%emt
00:05:19]} Nd8 {[%clk 00:27:21]} {[%emt 00:16:56]} 21. Rg2 {[%clk 00:11:01]}
{[%emt 00:05:09]} Rh8 {[%clk 00:18:37]} {[%emt 00:09:13]} 22. Qf2 {[%clk
00:08:50]} {[%emt 00:02:42]} Nc6 {[%clk 00:17:40]} {[%emt 00:01:27]} 23. Qe2
{[%clk 00:07:07]} {[%emt 00:02:13]} Kf8 {[%clk 00:16:25]} {[%emt 00:01:46]} 24.
a3 {[%clk 00:05:02]} {[%emt 00:02:36]} b5 {[%clk 00:12:52]} {[%emt 00:04:03]}
25. f5 {[%clk 00:02:00]} {[%emt 00:03:31]} exf5 {[%clk 00:12:06]} {[%emt
00:01:16]} 26. Ngxf5 {[%clk 00:01:43]} {[%emt 00:00:48]} gxf5 {[%clk 00:11:51]}
{[%emt 00:00:45]} 27. Nxf5 {[%clk 00:02:00]} {[%emt 00:00:12]} Qxe5 {[%clk
00:11:57]} {[%emt 00:00:24]} 28. Nh6 {[%clk 00:01:40]} {[%emt 00:00:50]} Qxe2
{[%clk 00:10:12]} {[%emt 00:02:15]} 29. Rxf7+ {[%clk 00:01:45]} {[%emt
00:00:25]} Ke8 {[%clk 00:10:33]} {[%emt 00:00:10]} 30. Rxe2+ {[%clk 00:02:06]}
{[%emt 00:00:10]} Kd8 {[%clk 00:10:44]} {[%emt 00:00:18]} 31. Rg2 {[%clk
00:00:59]} {[%emt 00:01:36]} Ne5 {[%clk 00:03:39]} {[%emt 00:07:35]} 32. Rf1
{[%clk 00:00:40]} {[%emt 00:00:48]} Bh3 {[%clk 00:01:49]} {[%emt 00:02:21]} 33.
g6 {[%clk 00:00:36]} {[%emt 00:00:35]} Kc7 {[%clk 00:01:25]} {[%emt 00:00:54]}
34. g7 {[%clk 00:00:38]} {[%emt 00:00:28]} Rxh6 {[%clk 00:01:10]} {[%emt
00:00:44]} 35. Rf8 {[%clk 00:00:41]} {[%emt 00:00:27]} Bxg2 {[%clk 00:00:35]}
{[%emt 00:01:05]} 36. g8=Q {[%clk 00:00:52]} {[%emt 00:00:19]} Rxf8 {[%clk
00:00:38]} {[%emt 00:00:28]} 37. Qxf8 {[%clk 00:01:09]} {[%emt 00:00:13]} Rg6
{[%clk 00:00:49]} {[%emt 00:00:19]} 38. Qe7+ {[%clk 00:01:17]} {[%emt
00:00:22]} Nd7 {[%clk 00:01:13]} {[%emt 00:00:06]} 39. Kf2 {[%clk 00:01:17]}
{[%emt 00:00:30]} Bh3 {[%clk 00:00:43]} {[%emt 00:01:00]} 40. Qh4 {[%clk
00:01:01]} {[%emt 00:00:46]} Rg2+ {[%clk 00:00:40]} {[%emt 00:00:33]} 41. Ke1
{[%clk 00:29:25]} {[%emt 00:02:05]} Bg4 {[%clk 00:28:43]} {[%emt 00:02:28]} 42.
h3 {[%clk 00:28:29]} {[%emt 00:01:25]} Bf5 {[%clk 00:20:34]} {[%emt 00:08:39]}
43. Qf4+ {[%clk 00:25:47]} {[%emt 00:03:10]} Kc6 {[%clk 00:16:08]} {[%emt
00:04:59]} 44. Qxf5 {[%clk 00:25:25]} {[%emt 00:00:52]} Nc5 {[%clk 00:15:34]}
{[%emt 00:01:04]} 45. Qf6+ {[%clk 00:25:22]} {[%emt 00:00:33]} Kc7 {[%clk
00:11:17]} {[%emt 00:04:45]} 46. Qxd4 {[%clk 00:25:07]} {[%emt 00:00:47]} Kd6
{[%clk 00:10:56]} {[%emt 00:00:51]} 47. b4 {[%clk 00:24:30]} {[%emt 00:01:07]}
Nd7 {[%clk 00:09:50]} {[%emt 00:01:36]} 48. Qf4+ {[%clk 00:24:17]} {[%emt
00:00:42]} Ke6 {[%clk 00:09:33]} {[%emt 00:00:47]} 49. Kf1 {[%clk 00:24:17]}
{[%emt 00:00:28]} Ra2 {[%clk 00:09:20]} {[%emt 00:00:45]} 50. Qe3+ {[%clk
00:23:58]} {[%emt 00:00:49]} Kf7 {[%clk 00:08:21]} {[%emt 00:01:29]} 51. Qa7
{[%clk 00:23:31]} {[%emt 00:00:57]} Ke7 {[%clk 00:08:26]} {[%emt 00:00:26]} 52.
Qxa6 {[%clk 00:23:49]} {[%emt 00:00:13]} Ne5 {[%clk 00:07:20]} {[%emt
00:01:34]} 53. Qxb5 {[%clk 00:22:10]} {[%emt 00:02:10]} Rxa3 {[%clk 00:07:41]}
{[%emt 00:00:09]} 54. Qxd5 {[%clk 00:17:52]} {[%emt 00:04:48]} Nxd3 {[%clk
00:08:00]} {[%emt 00:00:11]} 55. Qe4+ {[%clk 00:16:56]} {[%emt 00:01:23]} Kd6
{[%clk 00:06:06]} {[%emt 00:02:27]} 56. Ke2 {[%clk 00:15:19]} {[%emt 00:02:06]}
Ne5 {[%clk 00:05:22]} {[%emt 00:01:16]} 57. b5 {[%clk 00:13:32]} {[%emt
00:02:17]} Rxh3 {[%clk 00:04:46]} {[%emt 00:01:05]} 58. Qb4+ {[%clk 00:11:26]}
{[%emt 00:02:36]} Kd7 {[%clk 00:04:00]} {[%emt 00:01:17]} 59. b6 {[%clk
00:08:35]} {[%emt 00:03:21]} Nc6 {[%clk 00:03:05]} {[%emt 00:01:25]} 60. Qe4
{[%clk 00:07:10]} {[%emt 00:01:49]} Rh2+ {[%clk 00:01:52]} {[%emt 00:01:49]} 61.
Ke1 {[%clk 00:06:36]} {[%emt 00:01:02]} Rb2 {[%clk 00:01:22]} {[%emt 00:01:01]}
62. Qd5+ {[%clk 00:06:29]} {[%emt 00:00:35]} Kc8 {[%clk 00:01:11]} {[%emt
00:00:44]} 63. Qxc6+ {[%clk 00:06:48]} {[%emt 00:00:10]} Kb8 {[%clk 00:01:14]}
{[%emt 00:00:27]} 64. Qc7+ {[%clk 00:07:01]} {[%emt 00:00:17]} Ka8 {[%clk
00:01:42]} {[%emt 00:00:03]} 65. Qc8# {[%clk 00:07:19]} {[%emt 00:00:12]} 1-0

[Event "Swedish Chess Championship 2019: Minior-SM"]
[Site "Stiga Sports Arena, Arenatorget 1, Eskilstuna, Sweden, Sweden"]
[Date "2019.07.12"]
[Round "6.5"]
[White "Anfalt, Erik"]
[Black "Backlund, Elias"]
[Result "1-0"]
[TimeControl "90 minutes for 40 moves + 30 minutes for the rest of the game + 30 seconds per move from move one"]
[WhiteFideId "1753533"]
[BlackFideId "1753207"]
[WhiteElo "1511"]
[BlackElo "1656"]

1. e4 {[%clk 01:30:58]} {[%emt 00:00:01]} d6 {[%clk 01:30:50]} {[%emt
00:00:11]} 2. d4 {[%clk 01:31:12]} {[%emt 00:00:15]} Nf6 {[%clk 01:31:08]}
{[%emt 00:00:11]} 3. Nc3 {[%clk 01:31:39]} {[%emt 00:00:04]} g6 {[%clk
01:31:20]} {[%emt 00:00:18]} 4. f4 {[%clk 01:31:44]} {[%emt 00:00:25]} Bg7
{[%clk 01:30:57]} {[%emt 00:00:53]} 5. Nf3 {[%clk 01:31:52]} {[%emt 00:00:22]}
O-O {[%clk 01:30:09]} {[%emt 00:01:17]} 6. Bd3 {[%clk 01:31:27]} {[%emt
00:00:55]} c5 {[%clk 01:28:08]} {[%emt 00:02:32]} 7. d5 {[%clk 01:30:16]}
{[%emt 00:01:41]} a6 {[%clk 01:27:29]} {[%emt 00:01:10]} 8. a4 {[%clk
01:29:58]} {[%emt 00:00:48]} Ne8 {[%clk 01:23:12]} {[%emt 00:04:46]} 9. O-O
{[%clk 01:27:48]} {[%emt 00:02:40]} f5 {[%clk 01:20:22]} {[%emt 00:03:20]} 10.
exf5 {[%clk 01:26:34]} {[%emt 00:01:44]} Bxf5 {[%clk 01:20:17]} {[%emt
00:00:35]} 11. Ng5 {[%clk 01:25:16]} {[%emt 00:01:48]} Nc7 {[%clk 01:19:17]}
{[%emt 00:01:31]} 12. Ne2 {[%clk 01:18:32]} {[%emt 00:07:14]} Nd7 {[%clk
01:04:02]} {[%emt 00:15:44]} 13. c4 {[%clk 01:16:04]} {[%emt 00:02:58]} Qe8
{[%clk 00:54:55]} {[%emt 00:09:37]} 14. Bxf5 {[%clk 01:12:31]} {[%emt
00:04:03]} Rxf5 {[%clk 00:55:00]} {[%emt 00:00:24]} 15. Ng3 {[%clk 01:12:30]}
{[%emt 00:00:32]} Bd4+ {[%clk 00:53:12]} {[%emt 00:02:18]} 16. Kh1 {[%clk
01:12:18]} {[%emt 00:00:41]} Rf8 {[%clk 00:52:20]} {[%emt 00:01:23]} 17. Qg4
{[%clk 00:57:45]} {[%emt 00:15:03]} Bf6 {[%clk 00:49:13]} {[%emt 00:03:37]} 18.
Ne6 {[%clk 00:55:46]} {[%emt 00:02:29]} Nxe6 {[%clk 00:49:04]} {[%emt
00:00:39]} 19. Qxe6+ {[%clk 00:56:14]} {[%emt 00:00:02]} Rf7 {[%clk 00:48:19]}
{[%emt 00:01:15]} 20. Bd2 {[%clk 00:49:17]} {[%emt 00:07:28]} Nf8 {[%clk
00:47:00]} {[%emt 00:01:48]} 21. Qg4 {[%clk 00:47:30]} {[%emt 00:02:17]} Qd7
{[%clk 00:43:48]} {[%emt 00:03:43]} 22. Qxd7 {[%clk 00:42:28]} {[%emt
00:05:32]} Nxd7 {[%clk 00:43:47]} {[%emt 00:00:31]} 23. Ne4 {[%clk 00:40:04]}
{[%emt 00:02:54]} Raf8 {[%clk 00:42:30]} {[%emt 00:01:45]} 24. Nxf6+ {[%clk
00:38:23]} {[%emt 00:02:13]} Nxf6 {[%clk 00:42:06]} {[%emt 00:00:54]} 25. Rae1
{[%clk 00:37:58]} {[%emt 00:00:55]} Nh5 {[%clk 00:39:27]} {[%emt 00:03:09]} 26.
g3 {[%clk 00:37:15]} {[%emt 00:01:13]} Ng7 {[%clk 00:35:04]} {[%emt 00:04:53]}
27. Kg2 {[%clk 00:35:56]} {[%emt 00:01:49]} Nf5 {[%clk 00:34:34]} {[%emt
00:00:59]} 28. Bc3 {[%clk 00:34:21]} {[%emt 00:02:06]} h5 {[%clk 00:33:53]}
{[%emt 00:01:12]} 29. Re6 {[%clk 00:34:25]} {[%emt 00:00:25]} Kh7 {[%clk
00:33:40]} {[%emt 00:00:43]} 30. Rfe1 {[%clk 00:33:31]} {[%emt 00:01:19]} Rd8
{[%clk 00:31:37]} {[%emt 00:02:38]} 31. h3 {[%clk 00:32:05]} {[%emt 00:01:55]}
Rd7 {[%clk 00:31:13]} {[%emt 00:00:55]} 32. g4 {[%clk 00:31:01]} {[%emt
00:01:34]} Ng7 {[%clk 00:31:28]} {[%emt 00:00:16]} 33. Bxg7 {[%clk 00:27:52]}
{[%emt 00:03:39]} Kxg7 {[%clk 00:31:35]} {[%emt 00:00:23]} 34. Kg3 {[%clk
00:28:20]} {[%emt 00:00:02]} hxg4 {[%clk 00:29:44]} {[%emt 00:02:21]} 35. Kxg4
{[%clk 00:28:27]} {[%emt 00:00:24]} b6 {[%clk 00:28:45]} {[%emt 00:01:29]} 36.
Rf1 {[%clk 00:28:31]} {[%emt 00:00:25]} Rf6 {[%clk 00:26:17]} {[%emt 00:02:58]}
37. Rfe1 {[%clk 00:28:56]} {[%emt 00:00:06]} Rf7 {[%clk 00:26:26]} {[%emt
00:00:20]} 38. Kg5 {[%clk 00:29:05]} {[%emt 00:00:21]} Rf5+ {[%clk 00:26:35]}
{[%emt 00:00:21]} 39. Kg4 {[%clk 00:28:58]} {[%emt 00:00:34]} Rf7 {[%clk
00:26:57]} {[%emt 00:00:12]} 40. h4 {[%clk 00:29:14]} {[%emt 00:00:14]} Rb7
{[%clk 00:25:23]} {[%emt 00:02:04]} 41. R1e3 {[%clk 00:28:50]} {[%emt
00:00:53]} Ra7 {[%clk 00:23:45]} {[%emt 00:02:08]} 42. Rb3 {[%clk 00:28:47]}
{[%emt 00:00:34]} Rb7 {[%clk 00:23:26]} {[%emt 00:00:50]} 43. a5 {[%clk
00:26:47]} {[%emt 00:02:29]} b5 {[%clk 00:21:50]} {[%emt 00:02:05]} 44. cxb5
{[%clk 00:26:10]} {[%emt 00:01:08]} axb5 {[%clk 00:21:27]} {[%emt 00:00:53]} 45.
a6 {[%clk 00:26:28]} {[%emt 00:00:12]} Rb8 {[%clk 00:21:12]} {[%emt 00:00:45]}
46. Ra3 {[%clk 00:25:13]} {[%emt 00:01:45]} Ra8 {[%clk 00:20:28]} {[%emt
00:01:13]} 47. a7 {[%clk 00:25:37]} {[%emt 00:00:06]} b4 {[%clk 00:20:00]}
{[%emt 00:00:58]} 48. Ra6 {[%clk 00:26:01]} {[%emt 00:00:06]} Kh7 {[%clk
00:18:37]} {[%emt 00:01:53]} 49. h5 {[%clk 00:25:36]} {[%emt 00:00:55]} gxh5+
{[%clk 00:16:15]} {[%emt 00:02:52]} 50. Kxh5 {[%clk 00:25:37]} {[%emt
00:00:29]} Kg7 {[%clk 00:14:43]} {[%emt 00:02:02]} 51. Kg5 {[%clk 00:25:25]}
{[%emt 00:00:42]} Kf8 {[%clk 00:13:50]} {[%emt 00:01:23]} 52. f5 {[%clk
00:25:28]} {[%emt 00:00:27]} Kg7 {[%clk 00:08:13]} {[%emt 00:06:06]} 53. Rg6+
{[%clk 00:25:34]} {[%emt 00:00:25]} Kf8 {[%clk 00:05:02]} {[%emt 00:03:40]} 54.
f6 {[%clk 00:25:19]} {[%emt 00:00:45]} exf6+ {[%clk 00:01:58]} {[%emt
00:03:34]} 55. Rxf6 {[%clk 00:25:46]} {[%emt 00:00:04]} Ke7 {[%clk 00:01:36]}
{[%emt 00:00:52]} 56. Rfxd6 {[%clk 00:24:43]} {[%emt 00:01:33]} Ke8 {[%clk
00:28:49]} {[%emt 00:03:17]} 57. Rh6 {[%clk 00:52:29]} {[%emt 00:02:44]} Rf8
{[%clk 00:25:38]} {[%emt 00:03:42]} 58. Rhb6 {[%clk 00:52:28]} {[%emt
00:00:31]} Kd7 {[%clk 00:21:43]} {[%emt 00:04:25]} 59. Rb7+ {[%clk 00:48:59]}
{[%emt 00:03:59]} Ke8 {[%clk 00:20:39]} {[%emt 00:01:34]} 60. Rb8+ {[%clk
00:49:16]} {[%emt 00:00:14]} Kf7 {[%clk 00:20:54]} {[%emt 00:00:14]} 61. Rf6+
{[%clk 00:49:28]} {[%emt 00:00:18]} 1-0

[Event "Swedish Chess Championship 2019: Minior-SM"]
[Site "Stiga Sports Arena, Arenatorget 1, Eskilstuna, Sweden, Sweden"]
[Date "2019.07.12"]
[Round "6.6"]
[White "Muntean, Felix"]
[Black "Johansson-Ohman, Linnea"]
[Result "0-1"]
[TimeControl "90 minutes for 40 moves + 30 minutes for the rest of the game + 30 seconds per move from move one"]
[WhiteFideId "1054465"]
[BlackFideId "1737260"]
[WhiteElo "1377"]
[BlackElo "1529"]

1. e4 {[%clk 01:30:57]} {[%emt 00:00:02]} c6 {[%clk 01:30:47]} {[%emt
00:00:13]} 2. d4 {[%clk 01:31:01]} {[%emt 00:00:26]} d5 {[%clk 01:31:12]}
{[%emt 00:00:05]} 3. e5 {[%clk 01:30:45]} {[%emt 00:00:45]} Bf5 {[%clk
01:31:31]} {[%emt 00:00:11]} 4. Nf3 {[%clk 01:30:47]} {[%emt 00:00:28]} e6
{[%clk 01:31:33]} {[%emt 00:00:29]} 5. c4 {[%clk 01:28:07]} {[%emt 00:03:10]}
dxc4 {[%clk 01:28:31]} {[%emt 00:03:31]} 6. Bxc4 {[%clk 01:28:12]} {[%emt
00:00:25]} Ne7 {[%clk 01:25:52]} {[%emt 00:03:09]} 7. Bg5 {[%clk 01:26:07]}
{[%emt 00:02:34]} h6 {[%clk 01:25:15]} {[%emt 00:01:08]} 8. Bh4 {[%clk
01:24:16]} {[%emt 00:02:21]} Qb6 {[%clk 01:25:11]} {[%emt 00:00:33]} 9. b3
{[%clk 01:21:52]} {[%emt 00:02:55]} Nd5 {[%clk 01:24:52]} {[%emt 00:00:49]} 10.
Bxd5 {[%clk 01:21:29]} {[%emt 00:00:52]} Bb4+ {[%clk 01:23:18]} {[%emt
00:02:05]} 11. Nbd2 {[%clk 01:21:24]} {[%emt 00:00:34]} cxd5 {[%clk 01:23:29]}
{[%emt 00:00:19]} 12. a3 {[%clk 01:21:37]} {[%emt 00:00:17]} Bxd2+ {[%clk
01:21:38]} {[%emt 00:02:20]} 13. Qxd2 {[%clk 01:18:25]} {[%emt 00:03:42]} Qxb3
{[%clk 01:17:53]} {[%emt 00:04:16]} 14. O-O {[%clk 01:18:17]} {[%emt 00:00:37]}
Nc6 {[%clk 01:17:36]} {[%emt 00:00:47]} 15. Rfc1 {[%clk 01:16:20]} {[%emt
00:02:27]} O-O {[%clk 01:15:51]} {[%emt 00:02:15]} 16. Qf4 {[%clk 01:14:52]}
{[%emt 00:01:58]} Qb6 {[%clk 01:01:18]} {[%emt 00:15:03]} 17. Bf6 {[%clk
01:14:26]} {[%emt 00:00:56]} Kh7 {[%clk 00:52:30]} {[%emt 00:09:18]} 18. Qh4
{[%clk 01:09:24]} {[%emt 00:05:32]} gxf6 {[%clk 00:48:49]} {[%emt 00:04:12]} 19.
exf6 {[%clk 01:08:48]} {[%emt 00:01:05]} Rg8 {[%clk 00:48:32]} {[%emt
00:00:48]} 20. Qh5 {[%clk 01:08:51]} {[%emt 00:00:26]} Raf8 {[%clk 00:47:25]}
{[%emt 00:01:38]} 21. h4 {[%clk 01:08:48]} {[%emt 00:00:32]} Bg4 {[%clk
00:46:30]} {[%emt 00:01:26]} 22. Rxc6 {[%clk 01:06:30]} {[%emt 00:02:48]} Bxh5
{[%clk 00:46:24]} {[%emt 00:00:35]} 23. Rxb6 {[%clk 01:06:10]} {[%emt
00:00:51]} axb6 {[%clk 00:46:43]} {[%emt 00:00:11]} 24. Ne5 {[%clk 01:06:17]}
{[%emt 00:00:22]} Rc8 {[%clk 00:45:36]} {[%emt 00:01:37]} 25. f3 {[%clk
01:06:15]} {[%emt 00:00:32]} Rc2 {[%clk 00:44:10]} {[%emt 00:01:56]} 26. g4
{[%clk 01:06:02]} {[%emt 00:00:43]} Bg6 {[%clk 00:44:37]} {[%emt 00:00:03]} 27.
h5 {[%clk 01:06:19]} {[%emt 00:00:13]} Bxh5 {[%clk 00:44:55]} {[%emt 00:00:13]}
28. Kf1 {[%clk 01:06:41]} {[%emt 00:00:07]} Bg6 {[%clk 00:45:03]} {[%emt
00:00:22]} 29. Rb1 {[%clk 01:06:42]} {[%emt 00:00:29]} Rf2+ {[%clk 00:39:08]}
{[%emt 00:06:25]} 30. Kxf2 {[%clk 01:06:23]} {[%emt 00:00:50]} Bxb1 {[%clk
00:39:35]} {[%emt 00:00:03]} 31. Kg3 {[%clk 01:06:02]} {[%emt 00:00:50]} Bg6
{[%clk 00:39:26]} {[%emt 00:00:39]} 32. f4 {[%clk 01:05:15]} {[%emt 00:01:16]}
Ra8 {[%clk 00:39:03]} {[%emt 00:00:54]} 33. Kh4 {[%clk 01:04:32]} {[%emt
00:01:12]} Rxa3 {[%clk 00:38:51]} {[%emt 00:00:43]} 34. Nd7 {[%clk 01:03:50]}
{[%emt 00:01:11]} b5 {[%clk 00:38:02]} {[%emt 00:01:20]} 35. Nf8+ {[%clk
01:03:15]} {[%emt 00:01:03]} Kg8 {[%clk 00:37:47]} {[%emt 00:00:46]} 36. Nxg6
{[%clk 01:02:24]} {[%emt 00:01:21]} fxg6 {[%clk 00:37:20]} {[%emt 00:00:57]} 37.
g5 {[%clk 01:02:18]} {[%emt 00:00:35]} hxg5+ {[%clk 00:37:03]} {[%emt
00:00:48]} 38. Kxg5 {[%clk 01:02:28]} {[%emt 00:00:20]} Kf7 {[%clk 00:37:17]}
{[%emt 00:00:17]} 39. f5 {[%clk 01:01:37]} {[%emt 00:01:20]} gxf5 {[%clk
00:37:02]} {[%emt 00:00:45]} 40. Kf4 {[%clk 01:01:51]} {[%emt 00:00:16]} Ra1
{[%clk 00:37:23]} {[%emt 00:00:10]} 41. Ke5 {[%clk 01:02:09]} {[%emt 00:00:12]}
Re1+ {[%clk 00:37:45]} {[%emt 00:00:09]} 42. Kf4 {[%clk 01:02:32]} {[%emt
00:00:06]} Re4+ {[%clk 00:38:10]} {[%emt 00:00:06]} 0-1

[Event "Swedish Chess Championship 2019: Minior-SM"]
[Site "Stiga Sports Arena, Arenatorget 1, Eskilstuna, Sweden, Sweden"]
[Date "2019.07.12"]
[Round "7.1"]
[White "Seo, Jung Hyun"]
[Black "Falkevall, Axel"]
[Result "1/2-1/2"]
[TimeControl "90 minutes for 40 moves + 30 minutes for the rest of the game + 30 seconds per move from move one"]
[WhiteFideId "1735667"]
[BlackFideId "1735560"]
[WhiteElo "1575"]
[BlackElo "2067"]

1. Nf3 {[%clk 01:30:58]} {[%emt 00:00:02]} Nf6 {[%clk 01:30:55]} {[%emt
00:00:06]} 2. d4 {[%clk 01:31:24]} {[%emt 00:00:04]} d5 {[%clk 01:31:08]}
{[%emt 00:00:17]} 3. c4 {[%clk 01:31:49]} {[%emt 00:00:04]} e6 {[%clk
01:31:30]} {[%emt 00:00:08]} 4. Nc3 {[%clk 01:32:17]} {[%emt 00:00:03]} Be7
{[%clk 01:31:45]} {[%emt 00:00:15]} 5. Bf4 {[%clk 01:32:32]} {[%emt 00:00:16]}
c6 {[%clk 01:31:00]} {[%emt 00:01:14]} 6. e3 {[%clk 01:32:41]} {[%emt
00:00:21]} O-O {[%clk 01:31:06]} {[%emt 00:00:24]} 7. Bd3 {[%clk 01:32:43]}
{[%emt 00:00:28]} Nbd7 {[%clk 01:29:53]} {[%emt 00:01:43]} 8. h3 {[%clk
01:32:39]} {[%emt 00:00:33]} dxc4 {[%clk 01:28:03]} {[%emt 00:02:22]} 9. Bxc4
{[%clk 01:33:03]} {[%emt 00:00:05]} b5 {[%clk 01:27:05]} {[%emt 00:01:27]} 10.
Bd3 {[%clk 01:33:26]} {[%emt 00:00:07]} Bb7 {[%clk 01:26:05]} {[%emt 00:01:30]}
11. a3 {[%clk 01:30:39]} {[%emt 00:03:18]} a6 {[%clk 01:23:39]} {[%emt
00:02:55]} 12. b4 {[%clk 01:30:33]} {[%emt 00:00:36]} a5 {[%clk 01:22:00]}
{[%emt 00:02:09]} 13. Rb1 {[%clk 01:28:54]} {[%emt 00:02:09]} axb4 {[%clk
01:20:45]} {[%emt 00:01:46]} 14. axb4 {[%clk 01:29:01]} {[%emt 00:00:23]} Nb6
{[%clk 01:15:44]} {[%emt 00:05:30]} 15. e4 {[%clk 01:27:33]} {[%emt 00:01:58]}
Ra3 {[%clk 01:05:42]} {[%emt 00:10:31]} 16. Qc2 {[%clk 01:25:30]} {[%emt
00:02:34]} h6 {[%clk 00:38:27]} {[%emt 00:27:46]} 17. Bc7 {[%clk 01:22:30]}
{[%emt 00:03:31]} Qxc7 {[%clk 00:33:39]} {[%emt 00:05:18]} 18. Nxb5 {[%clk
01:22:46]} {[%emt 00:00:13]} Ra2 {[%clk 00:33:50]} {[%emt 00:00:19]} 19. Nxc7
{[%clk 01:21:32]} {[%emt 00:01:45]} Rxc2 {[%clk 00:34:02]} {[%emt 00:00:18]} 20.
Bxc2 {[%clk 01:21:58]} {[%emt 00:00:04]} Rc8 {[%clk 00:33:50]} 1/2-1/2